[Event "Rapid del Mercoledì"]
[Site "Chess.com"]
[Date "2020.05.06"]
[Round "1"]
[White "SanSecondoPR"]
[Black "laremaro"]
[Result "0-1"]
[WhiteElo "1290"]
[BlackElo "1593"]
[TimeControl "720+3"]
[EndTime "12:15:17 PDT"]
[Termination "laremaro ha vinto per abbandono"]

1. e4 {[%clk 0:11:56.2]} 1... d5 {[%clk 0:12:00.9]} 2. Nf3 {[%clk 0:11:34]} 2...
dxe4 {[%clk 0:11:47.4]} 3. Ng5 {[%clk 0:11:35.1]} 3... Nf6 {[%clk 0:11:47.8]} 4.
d3 {[%clk 0:11:34.8]} 4... e3 {[%clk 0:11:41.1]} 5. fxe3 {[%clk 0:11:30.3]} 5...
Bg4 {[%clk 0:11:37.6]} 6. Be2 {[%clk 0:11:25.1]} 6... Bxe2 {[%clk 0:11:39.2]} 7.
Qxe2 {[%clk 0:11:25.1]} 7... e6 {[%clk 0:11:39.9]} 8. O-O {[%clk 0:11:25.1]}
8... h6 {[%clk 0:11:19.8]} 9. Nf3 {[%clk 0:11:20.7]} 9... Bc5 {[%clk 0:11:19.8]}
10. d4 {[%clk 0:11:16.1]} 10... Be7 {[%clk 0:11:09.9]} 11. Nc3 {[%clk
0:11:10.9]} 11... O-O {[%clk 0:11:09.4]} 12. e4 {[%clk 0:11:09.2]} 12... Nc6
{[%clk 0:10:58.2]} 13. e5 {[%clk 0:11:04.4]} 13... Nd5 {[%clk 0:10:54.2]} 14.
Ne4 {[%clk 0:10:58.5]} 14... b6 {[%clk 0:10:26.9]} 15. c3 {[%clk 0:10:57.6]}
15... Na5 {[%clk 0:10:26.1]} 16. b4 {[%clk 0:10:47.1]} 16... Nb7 {[%clk
0:10:17.7]} 17. Ng3 {[%clk 0:10:27.4]} 17... c5 {[%clk 0:09:51.8]} 18. dxc5
{[%clk 0:09:32.4]} 18... bxc5 {[%clk 0:09:49.7]} 19. Rd1 {[%clk 0:09:17.8]}
19... Qc7 {[%clk 0:09:39.9]} 20. Bb2 {[%clk 0:09:08.5]} 20... cxb4 {[%clk
0:09:23.8]} 21. Rac1 {[%clk 0:08:57.5]} 21... Qb6+ {[%clk 0:09:12.2]} 22. Nd4
{[%clk 0:08:45.5]} 22... bxc3 {[%clk 0:09:01.1]} 23. Ba1 {[%clk 0:08:30]} 23...
Bc5 {[%clk 0:08:17.5]} 24. Qg4 {[%clk 0:08:18.3]} 24... Ne3 {[%clk 0:08:03]} 25.
Qh5 {[%clk 0:07:47.4]} 25... Nxd1 {[%clk 0:07:50.9]} 26. Rxd1 {[%clk 0:07:26.6]}
26... Bxd4+ {[%clk 0:07:51]} 27. Kh1 {[%clk 0:07:21.8]} 27... Rad8 {[%clk
0:07:28.4]} 28. Rf1 {[%clk 0:07:15.8]} 28... Qb5 {[%clk 0:07:01.1]} 29. Qg4
{[%clk 0:06:54.9]} 29... Bxe5 {[%clk 0:06:44.6]} 30. Qh5 {[%clk 0:06:33.6]}
30... a6 {[%clk 0:06:23.6]} 31. Bxc3 {[%clk 0:06:34.2]} 31... Bxc3 {[%clk
0:06:17.3]} 0-1

[Event "Rapid del Mercoledì"]
[Site "Chess.com"]
[Date "2020.05.06"]
[Round "1"]
[White "fausto2p"]
[Black "MarcoCiva"]
[Result "0-1"]
[WhiteElo "992"]
[BlackElo "1448"]
[TimeControl "720+3"]
[EndTime "12:17:23 PDT"]
[Termination "MarcoCiva ha vinto per tempo"]

1. d4 {[%clk 0:10:29.4]} 1... f5 {[%clk 0:11:53.3]} 2. g3 {[%clk 0:10:28.1]}
2... g6 {[%clk 0:11:51.7]} 3. Bg2 {[%clk 0:10:29.4]} 3... Bg7 {[%clk 0:11:49.8]}
4. c3 {[%clk 0:10:14.3]} 4... d5 {[%clk 0:11:47.6]} 5. Nf3 {[%clk 0:10:14.1]}
5... Nc6 {[%clk 0:11:45.4]} 6. Bf4 {[%clk 0:09:30.6]} 6... Nf6 {[%clk
0:11:36.8]} 7. Nbd2 {[%clk 0:09:24.6]} 7... O-O {[%clk 0:11:16.4]} 8. O-O {[%clk
0:09:24.9]} 8... Nh5 {[%clk 0:11:14]} 9. Be3 {[%clk 0:09:04.8]} 9... f4 {[%clk
0:11:08.7]} 10. gxf4 {[%clk 0:09:00.9]} 10... Nxf4 {[%clk 0:11:06]} 11. Bxf4
{[%clk 0:08:42.1]} 11... Rxf4 {[%clk 0:11:04.3]} 12. e3 {[%clk 0:08:28.7]} 12...
Rf8 {[%clk 0:11:01.4]} 13. c4 {[%clk 0:08:03.8]} 13... Bg4 {[%clk 0:10:51.4]}
14. cxd5 {[%clk 0:07:57.3]} 14... Qxd5 {[%clk 0:10:49.4]} 15. a3 {[%clk
0:07:28.5]} 15... Kh8 {[%clk 0:10:45.6]} 16. h3 {[%clk 0:07:12.7]} 16... Bh5
{[%clk 0:10:42.1]} 17. Rc1 {[%clk 0:06:54.7]} 17... Rad8 {[%clk 0:10:31.6]} 18.
Rc5 {[%clk 0:06:55.3]} 18... Qf7 {[%clk 0:10:15]} 19. b4 {[%clk 0:04:56.2]}
19... e5 {[%clk 0:09:51.6]} 20. b5 {[%clk 0:01:48.6]} 20... e4 {[%clk
0:09:46.8]} 21. bxc6 {[%clk 0:01:40.5]} 21... exf3 {[%clk 0:09:43.8]} 22. Rxh5
{[%clk 0:00:27.6]} 22... fxg2 {[%clk 0:09:35.9]} 0-1

[Event "Rapid del Mercoledì"]
[Site "Chess.com"]
[Date "2020.05.06"]
[Round "1"]
[White "GB86_CHESS"]
[Black "Mrtre7"]
[Result "1-0"]
[WhiteElo "1802"]
[BlackElo "1395"]
[TimeControl "720+3"]
[EndTime "12:18:25 PDT"]
[Termination "GB86_CHESS ha vinto per abbandono"]

1. e4 {[%clk 0:12:02.3]} 1... c5 {[%clk 0:11:59.4]} 2. f4 {[%clk 0:11:48.7]}
2... g6 {[%clk 0:11:52.5]} 3. Nf3 {[%clk 0:11:49.1]} 3... Bg7 {[%clk 0:11:52]}
4. Bc4 {[%clk 0:11:14.4]} 4... e6 {[%clk 0:11:52.8]} 5. O-O {[%clk 0:11:15.6]}
5... Ne7 {[%clk 0:11:51.4]} 6. d3 {[%clk 0:11:15.9]} 6... d5 {[%clk 0:11:40.4]}
7. exd5 {[%clk 0:11:13.4]} 7... exd5 {[%clk 0:11:42.4]} 8. Bb5+ {[%clk
0:11:06.2]} 8... Bd7 {[%clk 0:11:40.9]} 9. Bxd7+ {[%clk 0:11:06.8]} 9... Qxd7
{[%clk 0:11:24.6]} 10. Qe2 {[%clk 0:10:54.1]} 10... Nc6 {[%clk 0:11:21.4]} 11.
c3 {[%clk 0:10:49]} 11... O-O {[%clk 0:11:22.9]} 12. Be3 {[%clk 0:10:32.1]}
12... d4 {[%clk 0:10:21.7]} 13. Bd2 {[%clk 0:10:28.5]} 13... Rfe8 {[%clk
0:09:54.6]} 14. Qf2 {[%clk 0:10:24.5]} 14... Rac8 {[%clk 0:09:07.5]} 15. Na3
{[%clk 0:10:20]} 15... a6 {[%clk 0:08:38.3]} 16. c4 {[%clk 0:10:21.4]} 16... Nf5
{[%clk 0:08:08.5]} 17. Rae1 {[%clk 0:10:13.9]} 17... Nce7 {[%clk 0:07:56.3]} 18.
g4 {[%clk 0:10:11.6]} 18... Ne3 {[%clk 0:06:27.2]} 19. Bxe3 {[%clk 0:10:02.8]}
19... Qxg4+ {[%clk 0:06:24.6]} 20. Kh1 {[%clk 0:09:59.9]} 20... dxe3 {[%clk
0:06:20.4]} 21. Rxe3 {[%clk 0:10:01.2]} 21... Nf5 {[%clk 0:06:05.8]} 22. Rxe8+
{[%clk 0:09:49.1]} 22... Rxe8 {[%clk 0:06:06.7]} 23. Nc2 {[%clk 0:08:55.5]}
23... Qxf4 {[%clk 0:05:45.1]} 24. Qxc5 {[%clk 0:08:42.1]} 24... Re2 {[%clk
0:04:50.9]} 25. Rf2 {[%clk 0:08:36.9]} 25... Qc1+ {[%clk 0:04:23.4]} 26. Nce1
{[%clk 0:08:23.8]} 26... Bd4 {[%clk 0:03:52.2]} 27. Qc8+ {[%clk 0:08:18.7]}
27... Kg7 {[%clk 0:03:53.4]} 28. Rxe2 {[%clk 0:08:20]} 28... Bxb2 {[%clk
0:03:32.3]} 29. Qxb7 {[%clk 0:08:07.8]} 29... Nd4 {[%clk 0:03:31.9]} 30. Nxd4
{[%clk 0:08:01.9]} 30... Bxd4 {[%clk 0:03:33.1]} 31. Qe4 {[%clk 0:08:02.3]}
31... Bf6 {[%clk 0:03:31.4]} 32. h4 {[%clk 0:07:38.4]} 32... Qh6 {[%clk
0:03:25]} 33. Ng2 {[%clk 0:07:35.3]} 33... Qc1+ {[%clk 0:03:22.6]} 34. Re1
{[%clk 0:07:29.6]} 34... Qa3 {[%clk 0:03:24.1]} 35. Re2 {[%clk 0:07:30]} 35...
Qd6 {[%clk 0:03:22.9]} 36. d4 {[%clk 0:07:10.7]} 36... Bxd4 {[%clk 0:03:20.4]}
37. Rd2 {[%clk 0:07:11.9]} 37... Qb4 {[%clk 0:03:07.9]} 38. Qxd4+ {[%clk
0:07:10.4]} 1-0

[Event "Rapid del Mercoledì"]
[Site "Chess.com"]
[Date "2020.05.06"]
[Round "1"]
[White "sergiodone"]
[Black "OMatteoWuO"]
[Result "1-0"]
[WhiteElo "1540"]
[BlackElo "1197"]
[TimeControl "720+3"]
[EndTime "12:20:26 PDT"]
[Termination "sergiodone ha vinto per scaccomatto"]

1. e4 {[%clk 0:11:59.3]} 1... c5 {[%clk 0:11:59.8]} 2. Nf3 {[%clk 0:11:59.2]}
2... Nc6 {[%clk 0:12:00.7]} 3. d4 {[%clk 0:12:00.4]} 3... cxd4 {[%clk
0:12:02.6]} 4. Nxd4 {[%clk 0:12:01.3]} 4... Nf6 {[%clk 0:12:04.5]} 5. Nc3 {[%clk
0:11:55.8]} 5... d6 {[%clk 0:12:04.8]} 6. a3 {[%clk 0:11:45.3]} 6... e6 {[%clk
0:11:59.9]} 7. Be2 {[%clk 0:11:41.6]} 7... Be7 {[%clk 0:11:56.5]} 8. h3 {[%clk
0:11:28.3]} 8... O-O {[%clk 0:11:54.7]} 9. O-O {[%clk 0:11:26.5]} 9... a6 {[%clk
0:11:52.4]} 10. Kh1 {[%clk 0:11:21.2]} 10... Qc7 {[%clk 0:11:45.9]} 11. Be3
{[%clk 0:11:10.2]} 11... b5 {[%clk 0:11:37.5]} 12. Bf3 {[%clk 0:10:53.3]} 12...
Bb7 {[%clk 0:11:35.6]} 13. Rc1 {[%clk 0:10:36.5]} 13... Rac8 {[%clk 0:11:33.7]}
14. Qd2 {[%clk 0:10:06.5]} 14... Ne5 {[%clk 0:11:29.8]} 15. Be2 {[%clk
0:09:54.8]} 15... Nxe4 {[%clk 0:11:04.3]} 16. Nxe4 {[%clk 0:09:42.5]} 16... Bxe4
{[%clk 0:10:44.9]} 17. c4 {[%clk 0:09:38.1]} 17... Nxc4 {[%clk 0:10:36.6]} 18.
Bxc4 {[%clk 0:09:38.5]} 18... bxc4 {[%clk 0:10:38.5]} 19. Qc3 {[%clk 0:09:28.3]}
19... Bd3 {[%clk 0:10:36.3]} 20. Rfe1 {[%clk 0:09:29]} 20... d5 {[%clk
0:10:32.1]} 21. b4 {[%clk 0:09:13.3]} 21... Bf6 {[%clk 0:10:23.7]} 22. Qd2
{[%clk 0:07:16]} 22... Bxd4 {[%clk 0:10:01.3]} 23. Bxd4 {[%clk 0:07:14]} 23...
h6 {[%clk 0:09:39]} 24. Qe3 {[%clk 0:07:04.7]} 24... Bg6 {[%clk 0:09:31.4]} 25.
Rc3 {[%clk 0:06:30.3]} 25... Qe7 {[%clk 0:09:08.1]} 26. Bc5 {[%clk 0:06:30.3]}
26... Qd7 {[%clk 0:08:38.4]} 27. Bxf8 {[%clk 0:06:30.3]} 27... Kxf8 {[%clk
0:08:36.6]} 28. Qd4 {[%clk 0:06:29.3]} 28... f6 {[%clk 0:08:03.4]} 29. f4 {[%clk
0:06:19.1]} 29... Be4 {[%clk 0:07:58.6]} 30. Kh2 {[%clk 0:06:15.2]} 30... Qd6
{[%clk 0:07:45.8]} 31. g3 {[%clk 0:06:13.5]} 31... e5 {[%clk 0:07:32.3]} 32.
fxe5 {[%clk 0:06:14.2]} 32... fxe5 {[%clk 0:07:33.3]} 33. Qd2 {[%clk 0:05:46.6]}
33... Kg8 {[%clk 0:06:54.5]} 34. Rxe4 {[%clk 0:05:46.4]} 34... d4 {[%clk
0:06:50.7]} 35. Rg4 {[%clk 0:05:38.8]} 35... Qe6 {[%clk 0:06:31.4]} 36. Rc1
{[%clk 0:05:23.7]} 36... c3 {[%clk 0:06:23]} 37. Qd3 {[%clk 0:05:22.1]} 37...
Qa2+ {[%clk 0:06:22.5]} 38. Rc2 {[%clk 0:05:11.6]} 38... Qxa3 {[%clk 0:06:01.9]}
39. Qg6 {[%clk 0:05:11.9]} 39... Rc7 {[%clk 0:05:58.5]} 40. Rf2 {[%clk
0:04:45.3]} 40... Re7 {[%clk 0:05:43.2]} 41. Qd6 {[%clk 0:04:28.9]} 41... Re8
{[%clk 0:05:27.5]} 42. Rxg7+ {[%clk 0:04:01.8]} 42... Kxg7 {[%clk 0:05:28]} 43.
Qd7+ {[%clk 0:04:03.6]} 43... Kg6 {[%clk 0:05:27.1]} 44. Qxe8+ {[%clk
0:04:04.3]} 44... Kg5 {[%clk 0:05:18.7]} 45. Qe7+ {[%clk 0:04:02.4]} 45... Kg6
{[%clk 0:05:09.2]} 46. Qf7+ {[%clk 0:04:03]} 46... Kg5 {[%clk 0:05:10.9]} 47.
Rf5# {[%clk 0:04:00.7]} 1-0

[Event "Rapid del Mercoledì"]
[Site "Chess.com"]
[Date "2020.05.06"]
[Round "1"]
[White "sirmale49"]
[Black "pedrak"]
[Result "0-1"]
[WhiteElo "1394"]
[BlackElo "1673"]
[TimeControl "720+3"]
[EndTime "12:20:31 PDT"]
[Termination "pedrak ha vinto per abbandono"]

1. e4 {[%clk 0:12:00]} 1... d5 {[%clk 0:11:57.2]} 2. e5 {[%clk 0:11:51.4]} 2...
c5 {[%clk 0:11:57.2]} 3. f4 {[%clk 0:11:45]} 3... a6 {[%clk 0:11:52]} 4. Nf3
{[%clk 0:11:46.5]} 4... Bg4 {[%clk 0:11:52.7]} 5. Be2 {[%clk 0:11:35.8]} 5... e6
{[%clk 0:11:53.4]} 6. h3 {[%clk 0:11:36.3]} 6... Bxf3 {[%clk 0:11:54.6]} 7. Bxf3
{[%clk 0:11:37.5]} 7... Nc6 {[%clk 0:11:55.8]} 8. c3 {[%clk 0:11:36.7]} 8...
Qh4+ {[%clk 0:11:55.3]} 9. Ke2 {[%clk 0:11:20.8]} 9... Nh6 {[%clk 0:11:48.3]}
10. d3 {[%clk 0:11:12.2]} 10... Nf5 {[%clk 0:11:45.8]} 11. Rg1 {[%clk
0:10:31.2]} 11... h5 {[%clk 0:10:48.6]} 12. Be3 {[%clk 0:10:10.4]} 12... Qd8
{[%clk 0:10:25.5]} 13. Nd2 {[%clk 0:10:03.6]} 13... Be7 {[%clk 0:10:23.9]} 14.
Nb3 {[%clk 0:09:05.8]} 14... Nxe3 {[%clk 0:10:04.8]} 15. Kxe3 {[%clk 0:09:03.1]}
15... g6 {[%clk 0:10:04]} 16. g3 {[%clk 0:08:56.2]} 16... Qb6 {[%clk 0:10:03.3]}
17. Ke2 {[%clk 0:08:42.9]} 17... O-O-O {[%clk 0:09:56.8]} 18. Nd2 {[%clk
0:08:33.8]} 18... Qxb2 {[%clk 0:09:06.5]} 19. Qb3 {[%clk 0:08:26.5]} 19... Qxb3
{[%clk 0:09:05.4]} 20. Nxb3 {[%clk 0:08:22.7]} 20... c4 {[%clk 0:08:52.2]} 21.
Nd4 {[%clk 0:08:03.9]} 21... Nxd4+ {[%clk 0:08:42.8]} 22. cxd4 {[%clk
0:08:03.5]} 22... b5 {[%clk 0:08:23.6]} 23. Rgb1 {[%clk 0:07:56.7]} 23... b4
{[%clk 0:08:16.9]} 24. dxc4 {[%clk 0:07:47]} 24... dxc4 {[%clk 0:08:18.2]} 25.
Rc1 {[%clk 0:07:46.7]} 25... c3 {[%clk 0:08:16.5]} 26. Kd3 {[%clk 0:07:47.6]}
26... Kd7 {[%clk 0:08:10.2]} 27. Bd1 {[%clk 0:07:43.8]} 27... Kc6 {[%clk
0:07:54]} 28. Ba4+ {[%clk 0:07:43.5]} 28... Kb6 {[%clk 0:07:55.4]} 29. Rab1
{[%clk 0:07:40]} 29... a5 {[%clk 0:07:55]} 30. a3 {[%clk 0:07:37.6]} 30... Bc5
{[%clk 0:07:55.9]} 31. axb4 {[%clk 0:07:22.9]} 31... Rxd4+ {[%clk 0:07:56.3]}
32. Kxc3 {[%clk 0:07:19.1]} 32... axb4+ {[%clk 0:07:52.7]} 33. Kb3 {[%clk
0:06:41.2]} 33... Rd3+ {[%clk 0:07:31.9]} 34. Kc4 {[%clk 0:06:37]} 34... Rxg3
{[%clk 0:07:28.6]} 35. Rb3 {[%clk 0:06:15.7]} 35... Rxb3 {[%clk 0:07:10.5]} 36.
Kxb3 {[%clk 0:06:08.9]} 36... Rd8 {[%clk 0:07:10.2]} 37. Kb2 {[%clk 0:05:08.5]}
37... Rd3 {[%clk 0:06:57.4]} 38. Be8 {[%clk 0:05:08.3]} 38... Rxh3 {[%clk
0:06:40.3]} 39. Bxf7 {[%clk 0:05:07.9]} 39... Rf3 {[%clk 0:06:41.9]} 40. Bxg6
{[%clk 0:05:02.1]} 40... h4 {[%clk 0:06:41.9]} 41. Bf7 {[%clk 0:04:53.1]} 41...
Rxf4 {[%clk 0:06:42.3]} 42. Bxe6 {[%clk 0:04:54.3]} 42... Bd4+ {[%clk
0:06:41.3]} 43. Kb3 {[%clk 0:04:46.5]} 43... Bxe5 {[%clk 0:06:34.4]} 44. Rc4
{[%clk 0:04:30.3]} 44... Rxc4 {[%clk 0:06:13.7]} 45. Kxc4 {[%clk 0:04:29.9]}
45... Bc3 {[%clk 0:06:15.4]} 46. Kb3 {[%clk 0:04:30.4]} 46... Kc5 {[%clk
0:06:16.8]} 47. Bh3 {[%clk 0:04:26.7]} 47... Kd4 {[%clk 0:06:17]} 48. Bc8 {[%clk
0:04:22.2]} 48... Ke3 {[%clk 0:06:18.3]} 49. Bh3 {[%clk 0:04:18]} 49... Kf2
{[%clk 0:06:19.6]} 50. Bc8 {[%clk 0:04:17.4]} 50... Kg3 {[%clk 0:06:20]} 51. Bd7
{[%clk 0:04:15.6]} 51... h3 {[%clk 0:06:21.3]} 52. Bxh3 {[%clk 0:03:51.6]} 52...
Kxh3 {[%clk 0:06:22.6]} 53. Kc4 {[%clk 0:03:52.4]} 53... Kg3 {[%clk 0:06:24.2]}
54. Kb3 {[%clk 0:03:53.8]} 54... Kf3 {[%clk 0:06:25.7]} 55. Kc2 {[%clk
0:03:49.4]} 55... Ke2 {[%clk 0:06:27]} 56. Kb3 {[%clk 0:03:50.2]} 56... Kd2
{[%clk 0:06:28.4]} 0-1

[Event "Rapid del Mercoledì"]
[Site "Chess.com"]
[Date "2020.05.06"]
[Round "1"]
[White "BAKR1980"]
[Black "Luca090267"]
[Result "0-1"]
[WhiteElo "1629"]
[BlackElo "1429"]
[TimeControl "720+3"]
[EndTime "12:23:50 PDT"]
[Termination "Luca090267 ha vinto per abbandono"]

1. e4 {[%clk 0:12:02.2]} 1... e5 {[%clk 0:12:00.6]} 2. Nf3 {[%clk 0:12:03.3]}
2... Nc6 {[%clk 0:12:00.3]} 3. Bc4 {[%clk 0:12:04.5]} 3... Nf6 {[%clk 0:12:01]}
4. Ng5 {[%clk 0:12:05.6]} 4... d5 {[%clk 0:12:00.9]} 5. exd5 {[%clk 0:12:06.4]}
5... Na5 {[%clk 0:12:02.3]} 6. Bb5+ {[%clk 0:12:07.3]} 6... c6 {[%clk
0:12:04.8]} 7. dxc6 {[%clk 0:12:08.7]} 7... bxc6 {[%clk 0:12:07.3]} 8. Qf3
{[%clk 0:12:09.1]} 8... Bd7 {[%clk 0:11:54.3]} 9. Ba4 {[%clk 0:12:01.5]} 9... h6
{[%clk 0:11:55.2]} 10. Ne4 {[%clk 0:11:39.4]} 10... Nd5 {[%clk 0:11:36.9]} 11.
d4 {[%clk 0:11:23.1]} 11... exd4 {[%clk 0:11:21.3]} 12. O-O {[%clk 0:11:24.2]}
12... Be7 {[%clk 0:11:23.1]} 13. Re1 {[%clk 0:11:11.6]} 13... O-O {[%clk
0:11:23.7]} 14. Qg3 {[%clk 0:10:36.7]} 14... Kh8 {[%clk 0:11:07.6]} 15. c3
{[%clk 0:10:04.9]} 15... f5 {[%clk 0:10:37.2]} 16. Ned2 {[%clk 0:09:19.7]} 16...
dxc3 {[%clk 0:10:17.7]} 17. Nxc3 {[%clk 0:09:19.7]} 17... Nxc3 {[%clk
0:10:17.6]} 18. Qxc3 {[%clk 0:09:17.9]} 18... Bf6 {[%clk 0:10:10.6]} 19. Qf3
{[%clk 0:09:12.7]} 19... Qb6 {[%clk 0:09:51.3]} 20. Rb1 {[%clk 0:08:57.9]} 20...
Rad8 {[%clk 0:09:32.2]} 21. b3 {[%clk 0:08:28.9]} 21... c5 {[%clk 0:09:13.5]}
22. Bxd7 {[%clk 0:08:22.9]} 22... Rxd7 {[%clk 0:09:11.6]} 23. Qxf5 {[%clk
0:08:17.3]} 23... Rdf7 {[%clk 0:09:06.6]} 24. Ne4 {[%clk 0:06:57.7]} 24... Bd4
{[%clk 0:08:46.5]} 25. Qh5 {[%clk 0:05:31.4]} 25... Rxf2 {[%clk 0:08:05.3]} 26.
Be3 {[%clk 0:05:17.6]} 26... R2f5 {[%clk 0:06:32.2]} 27. Qe2 {[%clk 0:04:45]}
27... c4 {[%clk 0:05:27.4]} 28. Bxd4 {[%clk 0:04:13.5]} 28... Qxd4+ {[%clk
0:05:27.1]} 29. Qe3 {[%clk 0:03:53.5]} 29... Rf1+ {[%clk 0:04:51]} 30. Rxf1
{[%clk 0:03:32.1]} 30... Qxe3+ {[%clk 0:04:50.8]} 31. Nf2 {[%clk 0:03:33.4]}
31... cxb3 {[%clk 0:04:38.2]} 32. axb3 {[%clk 0:03:33.8]} 32... Nxb3 {[%clk
0:04:03.8]} 33. g3 {[%clk 0:03:26.6]} 33... Nd2 {[%clk 0:03:44.2]} 34. Rbe1
{[%clk 0:03:27.2]} 34... Qf3 {[%clk 0:02:54.6]} 35. Rd1 {[%clk 0:03:00.5]} 35...
Nxf1 {[%clk 0:02:54.6]} 36. Rxf1 {[%clk 0:03:01.3]} 36... h5 {[%clk 0:02:48.9]}
37. h3 {[%clk 0:02:35.1]} 37... a5 {[%clk 0:02:50.3]} 38. Kh2 {[%clk 0:02:34.7]}
38... Qxf2+ {[%clk 0:02:46.1]} 39. Rxf2 {[%clk 0:02:35.5]} 39... Rxf2+ {[%clk
0:02:48]} 40. Kg1 {[%clk 0:02:37.8]} 40... Rd2 {[%clk 0:02:48.7]} 41. g4 {[%clk
0:02:36.7]} 41... hxg4 {[%clk 0:02:49.2]} 42. hxg4 {[%clk 0:02:38.4]} 42... a4
{[%clk 0:02:51.5]} 0-1

[Event "Rapid del Mercoledì"]
[Site "Chess.com"]
[Date "2020.05.06"]
[Round "2"]
[White "pedrak"]
[Black "MarcoCiva"]
[Result "1-0"]
[WhiteElo "1679"]
[BlackElo "1439"]
[TimeControl "720+3"]
[EndTime "12:31:10 PDT"]
[Termination "pedrak ha vinto per abbandono"]

1. d4 {[%clk 0:12:00]} 1... Nf6 {[%clk 0:11:55.6]} 2. Nf3 {[%clk 0:12:00.9]}
2... e6 {[%clk 0:11:57.4]} 3. Bf4 {[%clk 0:12:01.6]} 3... d5 {[%clk 0:11:59.1]}
4. e3 {[%clk 0:12:03]} 4... c5 {[%clk 0:11:57.4]} 5. c3 {[%clk 0:12:04]} 5...
Nc6 {[%clk 0:11:57.2]} 6. Bd3 {[%clk 0:12:04.9]} 6... cxd4 {[%clk 0:11:52.5]} 7.
exd4 {[%clk 0:12:06]} 7... Bd6 {[%clk 0:11:43.6]} 8. Bg5 {[%clk 0:12:04.3]} 8...
O-O {[%clk 0:11:43.9]} 9. O-O {[%clk 0:12:05.2]} 9... e5 {[%clk 0:11:27.2]} 10.
dxe5 {[%clk 0:12:03]} 10... Nxe5 {[%clk 0:11:25.4]} 11. Nxe5 {[%clk 0:11:59.5]}
11... Bxe5 {[%clk 0:11:27.4]} 12. f4 {[%clk 0:11:38.3]} 12... Bc7 {[%clk
0:11:10.1]} 13. Nd2 {[%clk 0:11:28.8]} 13... Be6 {[%clk 0:10:00.7]} 14. Nb3
{[%clk 0:10:56.2]} 14... a6 {[%clk 0:09:43.5]} 15. Nd4 {[%clk 0:10:55.2]} 15...
Bb6 {[%clk 0:09:42.7]} 16. Bc2 {[%clk 0:10:50.4]} 16... Qd7 {[%clk 0:08:48]} 17.
Bxf6 {[%clk 0:10:40.3]} 17... gxf6 {[%clk 0:08:49.4]} 18. f5 {[%clk 0:10:20.2]}
18... Bxf5 {[%clk 0:08:48.1]} 19. Bxf5 {[%clk 0:10:16.6]} 1-0

[Event "Rapid del Mercoledì"]
[Site "Chess.com"]
[Date "2020.05.06"]
[Round "2"]
[White "Mrtre7"]
[Black "OMatteoWuO"]
[Result "1-0"]
[WhiteElo "1410"]
[BlackElo "1189"]
[TimeControl "720+3"]
[EndTime "12:31:48 PDT"]
[Termination "Mrtre7 ha vinto per abbandono"]

1. d4 {[%clk 0:12:02.9]} 1... Nf6 {[%clk 0:11:58.1]} 2. c4 {[%clk 0:12:04.9]}
2... g6 {[%clk 0:11:57.2]} 3. Nc3 {[%clk 0:12:06.5]} 3... Bg7 {[%clk 0:11:58.4]}
4. e4 {[%clk 0:12:08.6]} 4... d6 {[%clk 0:12:00.6]} 5. Be2 {[%clk 0:12:09.9]}
5... Nbd7 {[%clk 0:12:01.9]} 6. Nf3 {[%clk 0:12:11.9]} 6... O-O {[%clk
0:12:02.6]} 7. O-O {[%clk 0:12:13.8]} 7... e5 {[%clk 0:12:04]} 8. Be3 {[%clk
0:12:14]} 8... a5 {[%clk 0:11:42.4]} 9. c5 {[%clk 0:11:41.9]} 9... Ng4 {[%clk
0:11:14.8]} 10. Bg5 {[%clk 0:11:32.6]} 10... f6 {[%clk 0:10:57.9]} 11. Bd2
{[%clk 0:11:06.3]} 11... f5 {[%clk 0:10:42.4]} 12. Bg5 {[%clk 0:10:19.5]} 12...
Ngf6 {[%clk 0:10:23]} 13. cxd6 {[%clk 0:10:15.1]} 13... cxd6 {[%clk 0:09:35.5]}
14. dxe5 {[%clk 0:10:12.9]} 14... dxe5 {[%clk 0:09:21.7]} 15. Qb3+ {[%clk
0:09:44.2]} 15... Kh8 {[%clk 0:09:16.5]} 16. Rad1 {[%clk 0:09:45.9]} 16... h6
{[%clk 0:08:53.4]} 17. Bxf6 {[%clk 0:09:25.8]} 17... Nxf6 {[%clk 0:08:48.7]} 1-0